Cogmind - Beta 16.1 @@@ ROGUE MODE // 2026.01.16 @ 19:16:34 Player: C0-2MO Result: Destroyed by C-57 Dissector with Dual-blade Saw Performance ------------- Evolutions (8) 4000 Regions Visited (16) 3200 Robots Destroyed (131) 655 Value Destroyed (4499) 4499 Prototype IDs (43) 860 Alien Tech Used (5) 1000 Bonus (5826) 5826 TOTAL SCORE: 20040 Bonus ------- High Alert Combat Kills 174 Follower Combat Kills 2952 Hunted by Unchained 500 Entered DSFs 500 Network Hubs Disabled 400 Registered with UFD 300 Met Optimus in HQ 500 Met R17 at Cetus 500 Cogmind --------- Core Integrity 0/1450 Matter 159/300 Energy 58/100 System Corruption 12% Temperature Cool (0) Movement Core (50) Location -2/Research Parts ------- > --- POWER (2) -------- (None) > --- PROPULSION (8) --- (None) > --- UTILITY (11) ----- Advanced Coolant Injector Experimental Terrain Scan Processor Faulty Experimental Core Analyzer Graphene Brace > --- WEAPON (2) ------- (None) > --- INVENTORY (5) ---- Improved Fusion Compressor Dimensional Node Initializer Overtuned Linear Accelerator Peak State ------------ > --- POWER ------------ Improved Fusion Compressor Compact Particle Reactor > --- PROPULSION ------- Xenon Bombardment Thruster Xenon Bombardment Thruster Impulse Thruster Diametric Drive Impulse Thruster Array Impulse Thruster Array > --- UTILITY ---------- Advanced Cooling System Large Storage Unit Spectral Analyzer Improved Terrain Scanner Long-range Terrain Scanner Experimental Terrain Scan Processor ECM Suite Improved Cloaking Device Graphene Brace Improved Hacking Suite Experimental System Shield > --- WEAPON ----------- Sigix Broadsword > --- INVENTORY -------- Compact Particle Reactor Advanced Coolant Injector Advanced Quantum Shading Machine Stasis Canceller Advanced Shield Generator Dimensional Node Initializer High-powered Transdimensional Reconstructor High-powered Transdimensional Reconstructor Supercharged TR Helical Railgun Advanced Micro-nuke Launcher Advanced Datajack [Rating: 172] Favorites ----------- Power Subdweller Power Source Engine Subdweller Power Source Power Core Light Nuclear Core Reactor Quantum Reactor Propulsion Subdweller Monowheel Treads Light Treads Leg Flexi-carbon Leg Wheel Subdweller Monowheel Hover Unit Gravmag System Flight Unit Xenon Bombardment Thruster Utility Experimental System Shield Device Structural Scanner Storage Large Storage Unit Processor Advanced Signal Interpreter Hackware Experimental System Shield Protection Scrap Shield Weapon Subdweller Machine Gun Energy Gun Advanced Variable Charge Gun Energy Cannon Heavy Proton Cannon Ballistic Gun Subdweller Machine Gun Ballistic Cannon Hardcell Cannon Launcher Subdweller Shrapnel Launcher Special Weapon Mining Laser Impact Weapon Shock Maul Slashing Weapon Ripper Piercing Weapon Lance Special Melee Weapon Advanced Datajack Build | -11 -10 -10 -9 -9 -6 -6 -5 -5 -4 -4 -4 -4 -4 -3 -3 -2 ------- Run | Yrd Mat Sub Rec Scr Fac DSF Fac Upp Fac Ext Cet Arc Hub Res Qua Res Slots Evolved 16 | . . . . . 8 . 2 . 2 . . . . 2 . 2 Power 1 | . . . . . . . 1 . . . . . . . . . Propulsion 6 | . . . . . 4 . 1 . 1 . . . . . . . Utility 9 | . . . . . 4 . . . 1 . . . . 2 . 2 Weapon . | . . . . . . . . . . . . . . . . . Parts Attached 220 | 5 4 20 2 7 4 11 22 . 31 12 16 17 1 39 10 19 Power 20 | . . 1 . 1 . . 2 . 5 1 2 1 . 5 2 . Engine 3 | . . 1 . 1 . . . . . . . . . 1 . . Core 8 | . . . . . . . 2 . 4 1 . . . . 1 . Reactor 9 | . . . . . . . . . 1 . 2 1 . 4 1 . Propulsion 72 | 2 1 7 . 3 . . 6 . 11 5 7 7 1 14 2 6 Treads 6 | 2 1 . . . . . . . . 1 2 . . . . . Leg 4 | . . . . . . . . . . . 4 . . . . . Wheel 9 | . . 7 . 2 . . . . . . . . . . . . Hover 12 | . . . . . . . . . . 3 1 7 . 1 . . Flight 41 | . . . . 1 . . 6 . 11 1 . . 1 13 2 6 Utility 79 | 1 2 4 1 2 2 6 8 . 10 3 3 7 . 15 4 11 Device 37 | 1 . 1 1 1 1 1 2 . 4 1 1 4 . 8 3 8 Storage 5 | . . . . 1 . 1 1 . . . . . . 2 . . Processor 14 | . 1 . . . . . 3 . 1 1 . 1 . 3 1 3 Hackware 13 | . 1 . . . . . 2 . 5 1 . 2 . 2 . . Protection 10 | . . 3 . . 1 4 . . . . 2 . . . . . Artifact . | . . . . . . . . . . . . . . . . . Weapon 49 | 2 1 8 1 1 2 5 6 . 5 3 4 2 . 5 2 2 Energy Gun 5 | . . 1 . . 1 . . . . . 2 1 . . . . Energy Cannon 6 | . . 1 . 1 . 1 3 . . . . . . . . . Ballistic Gun 21 | 2 . 4 . . 1 4 1 . 4 1 2 . . 2 . . Ballistic Cannon 2 | . . . . . . . . . . 1 . . . . . 1 Launcher 4 | . . 2 . . . . 1 . . . . . . 1 . . Special Weapon 1 | . 1 . . . . . . . . . . . . . . . Impact Weapon 2 | . . . 1 . . . . . . . . . . 1 . . Slashing Weapon 3 | . . . . . . . . . . 1 . . . . 1 1 Piercing Weapon 2 | . . . . . . . 1 . . . . . . 1 . . Special Melee Weapon 3 | . . . . . . . . . 1 . . 1 . . 1 . Unidentified Prototypes 24 | . . . . . . 1 4 . . . 4 . . 9 3 3 Parts Lost 106 | . 1 9 . . . 14 10 . 23 3 1 . 10 2 5 28 Power 10 | . . 1 . . . 1 1 . 4 . . . 1 . 1 1 Propulsion 48 | . . 2 . . . 3 5 . 12 3 1 . 7 1 2 12 Utility 31 | . . 3 . . . 7 3 . 3 . . . 2 1 1 11 Weapon 17 | . 1 3 . . . 3 1 . 4 . . . . . 1 4 Highest Loss Streak 15 | . 1 3 . . . 6 6 . 13 2 1 . 8 1 2 15 To Critical Strikes . | . . . . . . . . . . . . . . . . . Average Backups 5 | 1 4 4 4 6 11 5 4 4 4 4 5 4 4 7 14 9 Power . | 1 1 . . . . . . . . . 1 1 1 1 1 1 Propulsion . | . . . . . 1 . . . . . . . . 1 1 . Utility 2 | . 1 . . 2 4 2 3 3 2 1 2 2 2 3 7 2 Weapon 1 | . 1 3 4 2 3 1 . . . . . . . . 1 1 Tool/Special . | . . . . . . . . . . . . . . . . . Unused Backups 19 | . 2 4 . 1 . 4 3 . 1 1 . . . 1 1 1 Power 2 | . 1 1 . . . . . . . . . . . . . . Propulsion 1 | . . 1 . . . . . . . . . . . . . . Utility 5 | . . 1 . . . 1 2 . 1 . . . . . . . Weapon 4 | . . 1 . 1 . 1 1 . . . . . . . . . Tool/Special 7 | . 1 . . . . 2 . . . 1 . . . 1 1 1 Average Slot Usage (%) 67 | . 71 78 48 60 34 28 38 28 51 50 85 90 90 80 83 57 Engine 4 | . . 10 . 3 6 1 2 . . . . . . 1 . . Reactor 1 | . . . . . . . . . . . 6 9 7 4 7 1 Treads 2 | . 28 1 . . . . . . . . 10 11 . . . . Wheel 12 | . . 26 28 28 13 5 . . . . . . . . . . Hover 1 | . . . . . . . . . . 2 4 11 34 2 . . Flight 5 | . . . . . . . 12 5 10 4 5 3 . 24 24 15 Device 6 | . 2 . 19 20 6 4 8 . 6 5 6 11 14 11 14 15 Storage 1 | . . . . 7 6 3 . . . . . . . 1 4 2 Processor 3 | . 1 . . . . . 5 17 8 7 6 4 . 2 8 8 Hackware 6 | . 12 . . . . . . . 15 21 19 12 15 19 14 6 Protection 4 | . . 11 . . . 4 . . . . 3 5 5 . . . Ballistic Gun 9 | . 25 21 . . 1 5 . . 1 . 5 2 . 2 . . Special Weapon 1 | . . 3 . . . . . . . . . . . . . . Peak Build Rating 172 | 5 9 14 8 10 21 28 87 25 69 63 120 120 103 152 160 172 Average Rating 45 | 3 6 12 7 7 13 12 59 24 49 50 95 110 94 103 144 115 On Entrance 47 | . 4 8 6 8 10 21 28 19 25 30 62 120 102 56 145 160 Avg Prop Armor Cover (%) 11 | 25 26 4 26 25 . . 10 . 9 16 10 8 4 5 1 1 Naked Turns 95 | . . . . . . 95 . . . . . . . . . . Heaviest Build 61 | 3 3 35 4 24 39 42 31 3 17 12 60 61 48 60 56 58 Greatest Support 130 | 3 3 40 3 24 24 24 37 4 36 27 130 130 69 62 62 58 Greatest Overweight (x) 10 | . . 10 1 6 1 6 3 . 1 2 1 2 1 2 . 6 Average Overweight (x) . | . . 3 . . . . . . . . . . . . . . Largest Inventory Capacity 15 | 5 5 5 5 15 15 15 10 5 5 5 5 5 5 15 15 15 Average Capacity 6 | 5 5 5 5 10 15 8 5 5 5 5 5 5 5 8 15 10 Most Carried 15 | 4 5 5 5 13 13 11 9 5 5 5 5 5 5 15 15 15 Average Carried 5 | 1 4 4 4 6 12 5 4 4 4 4 4 4 4 7 14 9 Final Capacity 15 | 5 5 5 5 15 15 5 5 5 5 5 5 5 5 15 15 5 Final Carried 15 | 4 5 5 5 13 10 4 5 5 5 5 5 4 5 15 15 3 Class Distribution -------------------- 26% | Subdweller-Mutant 26% | Mutant 11% | Scavenger-Mutant 11% | Hacker-Mutant 6% | Hacker-Ninja 4% | Hacker-Sprinter 4% | Scout Dominant Class ---------------- Mutant | -10/Materials Subdweller-Mutant | -10/Subcaves Mutant | -9/Recycling Mutant | -9/Scraptown Mutant | -6/Factory Mutant | -6/DSF Scout | -5/Factory Mutant | -5/Upper Caves Hacker-Mutant | -4/Factory Hacker-Mutant | -4/Extension Scavenger-Mutant | -4/Cetus Scavenger-Mutant | -4/Archives Scavenger-Sprinter | -4/Hub_04(d) Hacker-Ninja | -3/Research Hacker-Ninja | -3/Quarantine Hacker-Ninja | -2/Research Resources | -11 -10 -10 -9 -9 -6 -6 -5 -5 -4 -4 -4 -4 -4 -3 -3 -2 ----------- Run | Yrd Mat Sub Rec Scr Fac DSF Fac Upp Fac Ext Cet Arc Hub Res Qua Res Matter Collected 4772 | 300 309 695 . 60 . 396 369 12 347 280 304 248 . 532 204 716 Remotely . | . . . . . . . . . . . . . . . . . Salvage Created 6243 | 108 616 684 . . . 884 619 . 635 401 92 413 . 1007 331 453 Parts 300 | 8 40 52 . . . 20 23 . 34 21 5 35 . 25 7 30 Haulers Intercepted 12 | . 2 . . . . . 1 . 2 . . . . 6 1 . Recyclers Shooed 6 | . 1 . . . . . . . 2 3 . . . . . . Parts Field Recycled . | . . . . . . . . . . . . . . . . . Retrieved Matter . | . . . . . . . . . . . . . . . . . Parts Self-Destructed 9 | . . 9 . . . . . . . . . . . . . . Prevented . | . . . . . . . . . . . . . . . . . Parts Restored . | . . . . . . . . . . . . . . . . . Kills | -11 -10 -10 -9 -9 -6 -6 -5 -5 -4 -4 -4 -4 -4 -3 -3 -2 ------- Run | Yrd Mat Sub Rec Scr Fac DSF Fac Upp Fac Ext Cet Arc Hub Res Qua Res Combat Hostiles Destroyed 71 | . 9 21 . . . 9 13 . 6 1 1 1 . 3 2 5 Melee 9 | . . . . . . . 1 . 4 1 . . . . 2 1 Guns 38 | . 9 15 . . . 7 . . 2 . 1 1 . 3 . . Cannons 9 | . . 2 . . . . 7 . . . . . . . . . AOE 15 | . . 4 . . . 2 5 . . . . . . . . 4 Classes Destroyed 20 | 2 4 3 . . . 4 3 . 1 1 . . . . 1 1 Worker 1 | . . . . . . . . . . 1 . . . . . . Builder 5 | . . . . . . . 1 . . . . . . 1 . 3 Tunneler 4 | 2 . . . . . . . . . 1 . . . . . 1 Hauler 12 | . 2 . . . . . 1 . 2 . . . . 6 1 . Recycler 8 | 1 1 . . . . . 1 . 1 2 . . . 1 . 1 Mechanic 3 | . . . . . . . . . 1 . . . . 1 1 . Operator 16 | . 2 . . . . . . . 1 2 . 9 . . 1 1 Drone 1 | . . . . . . . . . . . . . . . 1 . Turret 2 | . . 2 . . . . . . . . . . . . . . Watcher 10 | . 1 . . . . . . . . . 1 . . 2 2 4 Swarmer 24 | . . 4 . . . . 8 . 5 . . . . 2 1 4 Cutter 1 | . . . . . . . . . . . . . . . . 1 Grunt 15 | . 9 . . . . 5 . . . . . . . 1 . . Duelist 1 | . . . . . . 1 . . . . . . . . . . Sentry 3 | . . . . . . 1 . . . 1 . 1 . . . . Specialist 1 | . . . . . . 1 . . . . . . . . . . Hunter 1 | . . . . . . . 1 . . . . . . . . . Programmer 5 | . . . . . . . 4 . 1 . . . . . . . Heavy 1 | . . . . . . 1 . . . . . . . . . . Cetus Guard 1 | . . . . . . . . . . . 1 . . . . . Subdweller 17 | . . 17 . . . . . . . . . . . . . . Best Kill Streak 6 | 2 3 6 . . . 3 6 . 3 2 2 5 . 3 2 4 Combat Bots Only 6 | . 2 4 . . . 3 6 . 3 1 1 1 . 1 1 4 Max Kills in Single Turn 4 | 1 1 4 . . . 1 2 . 1 1 1 1 . 1 1 3 Gunslinging . | . . . . . . . . . . . . . . . . . Exploded 3 | . . 3 . . . 1 2 . . . . . . . . 3 Melee 1 | . . . . . . . 1 . 1 1 . . . . 1 1 Uniques/NPCs Destroyed . | . . . . . . . . . . . . . . . . . Combat | -11 -10 -10 -9 -9 -6 -6 -5 -5 -4 -4 -4 -4 -4 -3 -3 -2 -------- Run | Yrd Mat Sub Rec Scr Fac DSF Fac Upp Fac Ext Cet Arc Hub Res Qua Res Hostile Shots Fired 1416 | . 52 94 . . . 255 193 . 256 28 23 4 57 40 128 286 Missed 638 | . 15 26 . . . 79 85 . 141 15 9 1 21 20 82 144 Hits 778 | . 37 68 . . . 176 108 . 115 13 14 3 36 20 46 142 Melee 17 | . . . . . . 5 . . . . . . . . . 12 Projectile 761 | . 37 68 . . . 171 108 . 115 13 14 3 36 20 46 130 AOE 13 | . . 4 . . . . . . . . . . 1 . . 8 Critical Strikes 37 | . . 2 . . . 4 4 . . 1 8 . 2 . 2 14 Actively Blocked 23 | . . . . . . . . . . 1 8 . . . . 14 Part Disruptions 17 | . . . . . . 2 1 . . . . . . . . 14 Damage Taken 15532 | . 488 1539 . . . 2802 1885 . 1993 425 427 77 975 414 946 3561 Core 4598 | . 85 163 . . . 843 955 . 565 152 150 . 85 77 139 1384 Absorbed by Shields 161 | . . . . . . 121 6 . . 28 . . . 6 . . Ignored by Resistances 76 | . . . . . . 50 26 . . . . . . . . . Regen/Repaired (Parts) 468 | . . . . . . . 5 . . 24 . . . . 92 347 Core Remaining (%) 33 | 100 . . . . . . . 4 . . . . 17 . 77 . Volleys Fired 491 | 14 67 128 . . . 46 47 . 22 17 26 68 18 27 2 9 Largest 2 | 2 2 2 . . . 2 1 . 1 1 2 2 1 1 1 1 Hottest 275 | 40 100 110 . . . 125 90 . 33 55 113 275 240 80 38 57 Shots Fired 642 | 22 121 181 . . . 79 47 . 22 17 27 70 18 27 2 9 Gun 503 | 22 119 120 . . . 74 . . 22 . 27 70 18 27 2 2 Cannon 71 | . . 7 . . . 1 45 . . 17 . . . . . 1 Launcher 19 | . . 7 . . . 4 2 . . . . . . . . 6 Special 49 | . 2 47 . . . . . . . . . . . . . . Kinetic 419 | 22 119 107 . . . 66 . . 22 17 26 12 . 23 2 3 Thermal 185 | . 2 54 . . . 13 35 . . . 1 58 18 4 . . Explosive 10 | . . 2 . . . . 2 . . . . . . . . 6 Electromagnetic 28 | . . 18 . . . . 10 . . . . . . . . . Robot Hit Streak 17 | 10 14 13 . . . 17 6 . 4 4 7 7 . 6 . 1 Robot Miss Streak 6 | 1 6 2 . . . 2 2 . 4 2 3 5 2 3 . 5 Penetration Max 1 | . . . . . . 1 . . 1 . 1 . . . . . Secondary Targets 3 | . 1 2 . . . . . . . . . . . . . . Max Gunslinging Chain 1 | . 1 1 . . . . . . . . . . . . . . Shots Hit Robots 477 | 18 71 93 . . . 57 23 . 22 72 20 40 2 26 15 18 Core Hits 208 | 5 34 41 . . . 31 20 . 11 10 10 22 . 11 . 13 Critical Kills 5 | . . . . . . 2 . . . . . 1 . 2 . . Critical Parts Destroyed 12 | . 1 . . . . . . . . . 1 1 . 3 6 . Critical Strikes 26 | . 1 3 . . . 2 . . 2 2 1 2 . 6 6 1 Destroy 9 | . 1 3 . . . 2 . . . . 1 2 . . . . Blast 1 | . . . . . . . . . . 1 . . . . . . Smash 11 | . . . . . . . . . . . . . . 5 6 . Sever 2 | . . . . . . . . . . 1 . . . . . 1 Impale 3 | . . . . . . . . . 2 . . . . 1 . . Melee Attacks 242 | . . . 5 . . . 2 . 36 69 . 2 2 36 44 46 Impact 69 | . . . 5 . . . . . . . . . . 32 32 . Slashing 82 | . . . . . . . . . . 33 . . . . 3 46 Piercing 40 | . . . . . . . 2 . 34 . . . . 4 . . Sneak Attacks 72 | . . . . . . . . . 5 44 . 2 2 8 5 6 Combat Hostiles 3 | . . . . . . . . . 1 . . . . . 2 . Follow-up Attacks . | . . . . . . . . . . . . . . . . . Damage Inflicted 16401 | 202 755 2047 . . . 2017 1583 . 859 1743 629 1166 11 1690 952 2747 Guns 6006 | 202 755 1480 . . . 1171 . . 244 . 629 1166 . 359 . . Cannons 1472 | . . 158 . . . 32 767 . . 515 . . . . . . Explosions 2855 | . . 409 . . . 813 751 . . . . . . . . 882 Melee 6052 | . . . . . . . 65 . 615 1228 . . . 1331 952 1861 Ramming 16 | . . . . . . 1 . . . . . . 11 . . 4 Kinetic 6430 | 202 755 1738 . . . 1778 . . 244 515 600 239 . 359 . . Thermal 1869 | . . 158 . . . 238 517 . . . 29 927 . . . . Explosive 1633 | . . . . . . . 751 . . . . . . . . 882 Electromagnetic 401 | . . 151 . . . . 250 . . . . . . . . . Impact 2081 | . . . . . . . . . . . . . . 1129 952 . Slashing 3089 | . . . . . . . . . . 1228 . . . . . 1861 Piercing 882 | . . . . . . . 65 . 615 . . . . 202 . . Highest Corruption 12 | . . . . . . 2 . . 1 1 1 1 4 . 3 12 Average Corruption 2 | . . . . . . 1 . . 1 1 1 1 2 . 1 8 Corruption Purged 2 | . . . . . . . . . . . . 1 . . 1 . Corruption Blocked 6 | . . . . . . . 6 . . . . . . . . . Effects 26 | . . . . . . 4 . . . 7 3 3 . . . 9 Message Errors 8 | . . . . . . 1 . . . 2 1 . . . . 4 Matter Fused 8 | . . . . . . 1 . . . 3 1 . . . . 3 Heat Flow Errors 3 | . . . . . . . . . . 1 1 . . . . 1 Energy Discharges 2 | . . . . . . 1 . . . 1 . . . . . . Data Loss (minor) 2 | . . . . . . . . . . . . 1 . . . 1 Data Loss (major) 1 | . . . . . . . . . . . . 1 . . . . Alerts 1 | . . . . . . . . . . . . 1 . . . . Weapon Failures 1 | . . . . . . 1 . . . . . . . . . . Overload Shots 3 | . . . . . . . . . . . . 1 2 . . . Overflow Damage 2453 | . . 5 . . . 29 118 . 19 235 . . . 664 797 586 Projectiles 51 | . . . . . . . 23 . . 28 . . . . . . Explosions 207 | . . 5 . . . 29 95 . . . . . . . . 78 Melee 2195 | . . . . . . . . . 19 207 . . . 664 797 508 Knockbacks 6 | . . . . . . . . . . 2 . . 1 2 1 . Impact 3 | . . . . . . . . . . . . . 1 1 1 . Kinetic 2 | . . . . . . . . . . 2 . . . . . . Secondary 1 | . . . . . . . . . . . . . . 1 . . Self-Inflicted Damage 269 | . . 8 . . . 63 113 . . . . . 5 . . 80 Shots 7 | . . 1 . . . 3 1 . . . . . . . . 2 Rammed 4 | . . . . . . 1 1 . . . . . 1 . . 1 Targets Rammed 4 | . . . . . . 1 1 . . . . . 1 . . 1 Kicked . | . . . . . . . . . . . . . . . . . Crushed . | . . . . . . . . . . . . . . . . . Highest Temperature 398 | . 4 . . . . 10 158 . 9 115 173 270 398 97 299 81 Average Temperature 63 | . 2 . . . . 6 38 . 6 75 63 111 120 26 113 19 Received Heat Transfer 2023 | . 267 231 . . . 934 45 . 60 36 18 9 102 42 9 270 Effects 3 | . . . . . . . . . . . . . . . 3 . Interference 3 | . . . . . . . . . . . . . . . 3 . Siege Activations . | . . . . . . . . . . . . . . . . . Martial Activations . | . . . . . . . . . . . . . . . . . Shielding Activations . | . . . . . . . . . . . . . . . . . Robots Disrupted . | . . . . . . . . . . . . . . . . . Combat Hostiles . | . . . . . . . . . . . . . . . . . Robots Corrupted 8 | . . . . . . . 1 . . . . . . 4 3 . Combat Hostiles . | . . . . . . . . . . . . . . . . . Parts Fried 18 | . . . . . . . 3 . . . . . . 6 9 . Impact Corruptions 26 | . . . . . . . . . . . . . . 11 15 . Robots Melted . | . . . . . . . . . . . . . . . . . Combat Hostiles . | . . . . . . . . . . . . . . . . . Parts Melted 5 | . . 2 . . . . 2 . . . . 1 . . . . Heat Transferred 2418 | . . 222 . . . 481 481 . . . 37 1197 . . . . Parts Sabotaged . | . . . . . . . . . . . . . . . . . Parts Stolen . | . . . . . . . . . . . . . . . . . Parts Stripped . | . . . . . . . . . . . . . . . . . Power Chain Reactions . | . . . . . . . . . . . . . . . . . Alert | -11 -10 -10 -9 -9 -6 -6 -5 -5 -4 -4 -4 -4 -4 -3 -3 -2 ------- Run | Yrd Mat Sub Rec Scr Fac DSF Fac Upp Fac Ext Cet Arc Hub Res Qua Res Maximum Alert Level 4 | . 1 . . . . 1 3 . 2 4 2 1 . 1 1 2 Low Security (%) 57 | 100 52 . 100 . 100 71 62 . 60 29 . 56 100 30 89 76 Level 1 28 | . 47 . . . . 28 17 . 37 31 . 43 . 70 10 12 Level 2 9 | . . . . . . . 12 . 1 15 100 . . . . 10 Level 3 2 | . . . . . . . 8 . . 12 . . . . . . Level 4 1 | . . . . . . . . . . 11 . . . . . . Level 5 . | . . . . . . . . . . . . . . . . . High Security . | . . . . . . . . . . . . . . . . . Max Security . | . . . . . . . . . . . . . . . . . Sterilizations 1 | . . . . . . 1 . . . . . . . . . . Peak Influence 1131 | 5 286 . 148 . . 307 854 . 410 1131 672 274 135 374 233 539 Initial 609 | . 3 . 57 . . 3 161 . 302 163 609 235 45 27 138 77 Average 230 | 3 148 . 97 . . 127 233 . 171 450 622 195 66 244 145 149 Influence Increases 8272 | 15 444 165 171 . 5 407 1295 . 1059 1666 309 213 258 784 404 1077 Destroy 0b10 Robot/C 2260 | . 180 120 . . . 180 260 . 240 740 160 80 . 60 20 220 Destroy 0b10 Robot/NC 350 | 15 30 . . . . . 15 . 35 60 10 45 . 55 35 50 Destroy Leader 316 | . 46 . . . . 10 42 . 64 76 . . . 24 6 48 Allied During Kill 817 | . . . . . . . . . 15 644 133 13 . . . 12 Trap Triggered on 0b10 40 | . . . . . . . . . 10 . . . . 30 . . Successful Hack 406 | . 50 . 19 . 5 . 48 . 61 32 . . 43 76 58 14 Select Force Hacks 150 | . . . 150 . . . . . . . . . . . . . Disable Machine 375 | . . . . . . 30 120 . 60 . . 45 15 15 75 15 Destroy Structure 768 | . 3 . 2 . . 37 160 . 64 54 6 30 20 44 30 318 Partial Spotted 360 | . . . . . . . 75 . 60 15 . . 15 90 15 90 Lose Combat Pursuer 2130 | . 135 45 . . . 150 375 . 450 45 . . 165 390 165 210 Active Sensor Use 200 | . . . . . . . 200 . . . . . . . . . Miscellaneous 100 | . . . . . . . . . . . . . . . . 100 Influence Decreases 7768 | 10 238 256 223 68 . 105 774 347 1207 910 810 671 335 591 512 711 Entered New Map 2152 | . 2 102 63 68 . 2 146 307 179 170 480 353 85 26 108 61 Time Decay 3239 | 10 226 114 160 . . . 388 40 344 410 190 238 150 365 254 350 Search Patrol Dispatched 300 | . . . . . . . 100 . 100 . . . . . 100 . Lost Part 963 | . 10 40 . . . 103 100 . 230 30 10 . 100 10 50 280 Lost Ally 610 | . . . . . . . 40 . . 300 130 80 . 40 . 20 Purge Threat 504 | . . . . . . . . . 354 . . . . 150 . . Squads Dispatched 59 | . 3 . . . . 1 14 . 7 4 . . 3 10 3 14 Investigation 28 | . 1 . . . . . 9 . 5 1 . . . 7 . 5 Extermination 10 | . . . . . . . 2 . 2 . . . 1 . 2 3 Reinforcement 21 | . 2 . . . . 1 3 . . 3 . . 2 3 1 6 Assault . | . . . . . . . . . . . . . . . . . Garrison . | . . . . . . . . . . . . . . . . . Intercept . | . . . . . . . . . . . . . . . . . Searches Triggered 3 | . . . . . . . 1 . 1 . . . . . 1 . Construction Impeded 2 | . . . . . . . 1 . . 1 . . . . . . Haulers Reinforced 3 | . . . . . . . 1 . . . . . . 2 . . Active Scanning Responses 2 | . . . . . . . 2 . . . . . . . . . Cargo Convoy Interrupts . | . . . . . . . . . . . . . . . . . Stealth | -11 -10 -10 -9 -9 -6 -6 -5 -5 -4 -4 -4 -4 -4 -3 -3 -2 --------- Run | Yrd Mat Sub Rec Scr Fac DSF Fac Upp Fac Ext Cet Arc Hub Res Qua Res Distress Signals 19 | . 1 . . . . . 3 . . 3 2 . 1 5 3 1 Communications Jammed . | . . . . . . . . . . . . . . . . . Distress Signals . | . . . . . . . . . . . . . . . . . Times Spotted 456 | . 33 26 . . . 23 46 . 57 47 11 24 23 39 46 81 Peak Tracking Total 16 | . 5 5 . . . 7 15 . 16 7 5 1 6 6 11 16 Tactical Retreats 72 | . 4 2 . . . 5 9 . 13 1 . . 5 10 12 11 ECM-based Alert Blocks 40 | . . . . . . . . . . . . . . . 22 18 Traps | -11 -10 -10 -9 -9 -6 -6 -5 -5 -4 -4 -4 -4 -4 -3 -3 -2 ------- Run | Yrd Mat Sub Rec Scr Fac DSF Fac Upp Fac Ext Cet Arc Hub Res Qua Res Traps Triggered 11 | . 1 2 . . . 1 1 . . 4 . . . . 1 1 Indirectly . | . . . . . . . . . . . . . . . . . Trap Hack Attempts 22 | . . . . . . . . . 1 . . . . 21 . . Triggered . | . . . . . . . . . . . . . . . . . Disarmed . | . . . . . . . . . . . . . . . . . Reprogrammed 10 | . . . . . . . . . 6 . . . . 4 . . Reused 4 | . . . . . . . . . 1 . . . . 3 . . Traps Extracted . | . . . . . . . . . . . . . . . . . Installed . | . . . . . . . . . . . . . . . . . Triggered 4 | . . . . . . . . . 1 . . . . 3 . . Machines | -11 -10 -10 -9 -9 -6 -6 -5 -5 -4 -4 -4 -4 -4 -3 -3 -2 ---------- Run | Yrd Mat Sub Rec Scr Fac DSF Fac Upp Fac Ext Cet Arc Hub Res Qua Res Machines Disabled 30 | . 1 4 . . . 2 8 . 4 . . 3 1 1 5 1 Max in Single Turn 3 | . 1 3 . . . 1 2 . 1 . . 1 1 1 1 1 Garrison Access 6 | . . . . . . . 1 . 2 . . . 1 . . 2 Network Hub 2 | . . . . . . . . . . . . . 2 . . . Machines Repaired . | . . . . . . . . . . . . . . . . . Machines Dismantled . | . . . . . . . . . . . . . . . . . Machines Sabotaged . | . . . . . . . . . . . . . . . . . Overloaded Fab Kills . | . . . . . . . . . . . . . . . . . Hacking | -11 -10 -10 -9 -9 -6 -6 -5 -5 -4 -4 -4 -4 -4 -3 -3 -2 --------- Run | Yrd Mat Sub Rec Scr Fac DSF Fac Upp Fac Ext Cet Arc Hub Res Qua Res Machines Accessed 118 | . 7 1 10 4 1 . 15 . 19 15 . . 8 17 10 11 Terminals 67 | . 6 . 5 . 1 . 5 . 9 13 . . 7 10 8 3 Fabricators 8 | . . . . . . . 2 . 2 . . . . 3 . 1 Repair Stations 5 | . . . . . . . 2 . 1 1 . . . . . 1 Recycling Units 22 | . 1 . 5 . . . 4 . 3 1 . . . 4 . 4 Scanalyzers 5 | . . . . . . . 1 . 2 . . . . . 2 . Garrison Access 6 | . . . . . . . 1 . 2 . . . 1 . . 2 Total Hacks 398 | . 29 4 21 25 2 . 57 . 69 35 . . 39 59 28 30 Successful 253 | . 16 4 15 25 1 . 26 . 43 26 . . 26 40 19 12 Failed 145 | . 13 . 6 . 1 . 31 . 26 9 . . 13 19 9 18 Catastrophic 16 | . . . . . . . 4 . 3 . . . . 3 . 6 Database Lockouts . | . . . . . . . . . . . . . . . . . Manual 260 | . 27 . 15 . . . 31 . 46 20 . . 35 44 22 20 Terminals 265 | . 24 . 13 . 2 . 26 . 49 32 . . 38 46 22 13 Fabricators 24 | . . . . . . . 9 . 3 . . . . 6 . 6 Repair Stations 15 | . . . . . . . 8 . 2 2 . . . . . 3 Recycling Units 35 | . 5 . 8 . . . 5 . 3 1 . . . 7 . 6 Scanalyzers 17 | . . . . . . . 6 . 5 . . . . . 6 . Garrison Access 13 | . . . . . . . 3 . 7 . . . 1 . . 2 Terminal Hacks 94 | . 6 4 2 25 1 . 2 . 18 13 . . 8 12 1 2 Record 29 | . . 4 . 25 . . . . . . . . . . . . Part Schematic 9 | . 2 . 1 . . . . . 2 . . . . 4 . . Robot Analysis 3 | . 2 . . . . . . . . . . . . 1 . . Prototype ID Bank 7 | . 1 . 1 . . . . . 2 . . . 2 1 . . Open Door 9 | . . . . . . . . . . 8 . . . 1 . . Open DSF 2 | . . . . . 1 . 1 . . . . . . . . . Level Access Points 1 | . . . . . . . . . . . . . 1 . . . Branch Access Points 2 | . . . . . . . . . 1 . . . . 1 . . Terminal Index 4 | . 1 . . . . . . . . 1 . . 1 . . 1 Fabricator Index 1 | . . . . . . . . . . . . . . 1 . . Recycling Unit Index 1 | . . . . . . . . . 1 . . . . . . . Scanalyzer Index 1 | . . . . . . . . . 1 . . . . . . . Garrison Index 2 | . . . . . . . . . 1 . . . 1 . . . Alert Level 2 | . . . . . . . . . 1 . . . . 1 . . Unreport Threat 5 | . . . . . . . . . 3 . . . . 1 . 1 Locate Traps 5 | . . . . . . . . . 5 . . . . . . . Reprogram Traps 1 | . . . . . . . . . 1 . . . . . . . Recall Investigation 1 | . . . . . . . . . . . . . . 1 . . Recall Reinforcements 1 | . . . . . . . . . . 1 . . . . . . Registered Components 1 | . . . . . . . . . . 1 . . . . . . Zone Layout 7 | . . . . . . . 1 . . 2 . . 3 . 1 . Fabricator Hacks 9 | . . . . . . . 2 . 2 . . . . 4 . 1 Network Status 1 | . . . . . . . . . 1 . . . . . . . Load Schematic 5 | . . . . . . . 1 . . . . . . 3 . 1 Build 3 | . . . . . . . 1 . 1 . . . . 1 . . Repair Station Hacks 5 | . . . . . . . 2 . 1 2 . . . . . . Scan Component 1 | . . . . . . . . . . 1 . . . . . . Repair 1 | . . . . . . . . . . 1 . . . . . . Refit 3 | . . . . . . . 2 . 1 . . . . . . . Recycling Unit Hacks 1 | . . . 1 . . . . . . . . . . . . . Retrieve Components 1 | . . . 1 . . . . . . . . . . . . . Scanalyzer 14 | . . . . . . . 6 . 2 . . . . . 6 . Insert Component 6 | . . . . . . . 1 . 1 . . . . . 4 . Analyze 1 | . . . . . . . 1 . . . . . . . . . Retrieve Study 7 | . . . . . . . 4 . 1 . . . . . 2 . Garrison Access Hacks 6 | . . . . . . . 1 . 2 . . . 1 . . 2 Seal Access 6 | . . . . . . . 1 . 2 . . . 1 . . 2 Unauthorized Hacks 123 | . 10 . 12 . . . 13 . 18 11 . . 17 23 12 7 Terminals 95 | . 7 . 7 . . . 7 . 14 10 . . 17 18 12 3 Track 12 | . . . . . . . . . 2 1 . . 5 1 2 1 Assimilate 7 | . . . . . . . . . . 1 . . 1 4 1 . Botnet 26 | . 1 . 2 . . . 4 . 5 1 . . 2 7 3 1 Disrupt 3 | . . . . . . . . . 1 1 . . 1 . . . Operators 4 | . 1 . . . . . . . . 1 . . 1 1 . . Skim 43 | . 5 . 5 . . . 3 . 6 5 . . 7 5 6 1 Fabricators 3 | . . . . . . . 1 . 1 . . . . 1 . . Prioritize 2 | . . . . . . . . . 1 . . . . 1 . . Liberate 1 | . . . . . . . 1 . . . . . . . . . Repair Stations 1 | . . . . . . . 1 . . . . . . . . . Patch 1 | . . . . . . . 1 . . . . . . . . . Recycling Units 24 | . 3 . 5 . . . 4 . 3 1 . . . 4 . 4 Monitor 1 | . 1 . . . . . . . . . . . . . . . Reject 1 | . 1 . . . . . . . . . . . . . . . Mask 1 | . 1 . . . . . . . . . . . . . . . Tunnel 5 | . . . 5 . . . . . . . . . . . . . Fedlink 14 | . . . . . . . 4 . 2 1 . . . 4 . 3 Scraphulk 2 | . . . . . . . . . 1 . . . . . . 1 Scanalyzers . | . . . . . . . . . . . . . . . . . Garrison Access . | . . . . . . . . . . . . . . . . . Data Cores Recovered 1 | . . . . . . . . . . . . . . . 1 . Used . | . . . . . . . . . . . . . . . . . Hacking Detections 68 | . 7 . 7 . 1 . 11 . 14 5 . . 5 9 5 4 Full Trace Events 6 | . . . . . . . 2 . 2 . . . . 1 . 1 Feedback Events 1 | . . . . . . . . . . . . . . . . 1 Corruption 1 | . . . . . . . . . . . . . . . . 1 Feedback Blocked . | . . . . . . . . . . . . . . . . . Robot Schematics Acquired 1 | . . . . . . . . . . . . . . . 1 . Robots Built . | . . . . . . . . . . . . . . . . . Authchips . | . . . . . . . . . . . . . . . . . Time . | . . . . . . . . . . . . . . . . . Total Robot Build Rating . | . . . . . . . . . . . . . . . . . Part Schematics Acquired 13 | . 2 . 1 . . . 1 . 2 . . . . 4 3 . Parts Built 4 | . . . . . . . 2 . 1 . . . . 1 . . Authchips 2 | . . . . . . . 1 . 1 . . . . . . . Time 267 | . . . . . . . 84 . 128 . . . . 55 . . Total Part Build Rating 25 | . . . . . . . 8 . 8 . . . . 9 . . Part Studies Acquired 7 | . . . . . . . 4 . 1 . . . . . 2 . Parts Repaired 1 | . . . . . . . . . . 1 . . . . . . Time 16 | . . . . . . . . . . 16 . . . . . . Parts Recycled . | . . . . . . . . . . . . . . . . . Recycled Matter . | . . . . . . . . . . . . . . . . . Retrieved Matter . | . . . . . . . . . . . . . . . . . Retrieved Components 1 | . . . 1 . . . . . . . . . . . . . Parts Scanalyzed 2 | . . . . . . . 1 . 1 . . . . . . . Part Schematics Acquired 1 | . . . . . . . 1 . . . . . . . . . Parts Damaged . | . . . . . . . . . . . . . . . . . Bothacking | -11 -10 -10 -9 -9 -6 -6 -5 -5 -4 -4 -4 -4 -4 -3 -3 -2 ------------ Run | Yrd Mat Sub Rec Scr Fac DSF Fac Upp Fac Ext Cet Arc Hub Res Qua Res Used RIF Installer . | . . . . . . . . . . . . . . . . . Robots Hacked 7 | . . . . . . . . . 1 . . 2 . . 4 . Non-combat 3 | . . . . . . . . . 1 . . 2 . . . . Combat 1 | . . . . . . . . . . . . . . . 1 . Robot Hacks Applied 4 | . . . . . . . . . 1 . . 2 . . 1 . parse_system 1 | . . . . . . . . . . . . . . . 1 . find_chute 1 | . . . . . . . . . 1 . . . . . . . check_alert 2 | . . . . . . . . . . . . 2 . . . . Manual 4 | . . . . . . . . . . . . . . . 4 . Relay Couplers Released 4 | . . . . . . . . . 4 . . . . . . . Programmers 4 | . . . . . . . . . 4 . . . . . . . Fabnet Peak Effective % . | . . . . . . . . . . . . . . . . . Robots Rewired 20 | . . . . . . . . . . 20 . . . . . . Allies Hacked . | . . . . . . . . . . . . . . . . . Hacks Repelled . | . . . . . . . . . . . . . . . . . Allies | -11 -10 -10 -9 -9 -6 -6 -5 -5 -4 -4 -4 -4 -4 -3 -3 -2 -------- Run | Yrd Mat Sub Rec Scr Fac DSF Fac Upp Fac Ext Cet Arc Hub Res Qua Res Total Allies 41 | . . . . . . . 2 1 1 32 . . . 4 . 1 Largest Group 14 | . . . . . . . 2 1 1 14 13 5 . 2 . 1 Highest-Rated Group 576 | . . . . . . . 92 165 123 576 548 221 . 90 . 139 Highest-Rated Ally 165 | . . . . . . . 49 165 123 159 51 51 . 45 . 139 Initial UFD Resources 83 | . . . . . 22 22 24 42 46 55 57 57 57 61 79 83 Total Orders 3 | . . . . . . . . . . . 2 1 . . . . ROAM 2 | . . . . . . . . . . . 1 1 . . . . FOLLOW 1 | . . . . . . . . . . . 1 . . . . . Ally Attacks 354 | . . . . . . . 2 . 18 236 64 17 . . . 17 Total Damage 10718 | . . . . . . . 41 . 704 7021 1665 395 . . . 892 Kills 72 | . . . . . . . . . 8 45 9 4 . . . 6 Allies Corrupted . | . . . . . . . . . . . . . . . . . Allies Melted 1 | . . . . . . . . . . 1 . . . . . . Intel | -11 -10 -10 -9 -9 -6 -6 -5 -5 -4 -4 -4 -4 -4 -3 -3 -2 ------- Run | Yrd Mat Sub Rec Scr Fac DSF Fac Upp Fac Ext Cet Arc Hub Res Qua Res Active Infowar (turns) 6202 | 18 159 88 328 1107 30 151 258 95 525 459 388 507 304 658 545 582 Optics 3282 | . 66 88 328 280 . . . . . 459 388 462 . 131 498 582 Sensors 768 | . . . . . . . . . 140 . . . . 389 239 . A.S.S. 130 | . . . . . . 12 118 . . . . . . . . . Terrain 343 | . . . . . . . . . . . . . . . . 343 Structural 2943 | . . . 123 1104 30 139 . . . . . 45 304 576 543 79 Seismic 153 | 18 93 . . . . . . . 42 . . . . . . . Machine Analysis 597 | . . . . . . . 132 95 370 . . . . . . . Triangulation 154 | . . . . . . . 99 . . . . . . 55 . . Cloaking 2138 | . . . . . . . . . 17 . 90 507 254 490 495 285 ECM 624 | . . . . . . . . . . . . . . . 226 398 Robot Analysis Total 3 | . 2 . . . . . . . . . . . . 1 . . Derelict Logs Recovered 7 | . . 1 . 4 . . . 2 . . . . . . . . Drone Launches . | . . . . . . . . . . . . . . . . . Drone Recoveries . | . . . . . . . . . . . . . . . . . Exploration | -11 -10 -10 -9 -9 -6 -6 -5 -5 -4 -4 -4 -4 -4 -3 -3 -2 ------------- Run | Yrd Mat Sub Rec Scr Fac DSF Fac Upp Fac Ext Cet Arc Hub Res Qua Res Turns Passed 13674 | 68 574 4789 328 1107 30 401 1042 95 857 987 388 507 305 860 545 791 Spaces Moved 14312 | 44 718 1869 406 1479 27 240 1328 142 1524 953 193 292 603 1730 1111 1653 Core 3364 | 44 718 849 406 948 . 198 149 . 2 . . . . . . 50 Treads 334 | . . 112 . . . . . . . 8 101 113 . . . . Legs 92 | . . . . . . . . . . . 92 . . . . . Wheels 1508 | . . 908 . 531 27 42 . . . . . . . . . . Hover 831 | . . . . . . . . . 49 . . 179 603 . . . Flight 8183 | . . . . . . . 1179 142 1473 945 . . . 1730 1111 1603 Fastest Speed 22 | 50 50 50 50 50 90 50 32 35 25 32 120 32 32 22 30 22 Average Speed 67 | 50 50 223 50 72 96 65 38 35 37 36 144 90 38 30 31 32 Slowest Speed 550 | 50 50 550 100 350 105 350 200 35 112 195 250 176 120 205 37 520 Overloaded Moves 12 | . . . . . . . . . . . . . . . . 12 Propulsion Burnouts . | . . . . . . . . . . . . . . . . . Robots Hopped 91 | . . . . . . . 30 . 12 14 . . . 3 13 19 Potential Cave-ins 4 | . . 2 . . . . . . . . . . 2 . . . Cave-ins Triggered . | . . . . . . . . . . . . . . . . . Teleports 4 | . . . . . . . . . . . . . . . 1 3 Exploration Rate (%) 60 | 3 85 77 66 90 1 94 35 36 29 86 59 94 69 50 94 52 Regions Visited 16 Branch Regions 9 Pre-discovered Areas 9 | . . 1 5 . . . 1 . 2 . . . . . . . Known Exits Taken 8 | . 1 1 . . 1 . . . 1 1 . . 1 1 1 . Unknown Exits Taken 7 | 1 . . 1 1 . . 1 1 . . 1 1 . . . . Scrap Searched 11 | . . 6 . 3 . . . 2 . . . . . . . . Spaces Dug 174 | . 2 11 2 . . . 17 . 18 5 . . 12 22 15 70 Terrain Destroyed 467 | . 2 88 2 . . 47 96 . 20 8 . 15 12 22 15 140 Melee 76 | . . . 2 . . . . . 18 5 . . . 20 15 16 Projectile 79 | . 2 22 . . . . 19 . 2 3 . 15 12 2 . 2 AOE 312 | . . 66 . . . 47 77 . . . . . . . . 122 Terrain Rammed . | . . . . . . . . . . . . . . . . . Walls Destroyed . | . . . . . . . . . . . . . . . . . Machines Disabled . | . . . . . . . . . . . . . . . . . Actions | -11 -10 -10 -9 -9 -6 -6 -5 -5 -4 -4 -4 -4 -4 -3 -3 -2 --------- Run | Yrd Mat Sub Rec Scr Fac DSF Fac Upp Fac Ext Cet Arc Hub Res Qua Res Total 17122 | 67 818 2190 520 1518 30 397 1775 186 1722 1528 272 464 659 1961 1226 1789 Wait 1552 | . 19 119 105 9 . 65 361 43 101 447 28 63 30 71 50 41 Move 14126 | 43 717 1868 405 1478 26 239 1272 141 1501 926 192 291 602 1723 1085 1617 Hop 79 | . . . . . . . 25 . 10 12 . . . 3 12 17 Pick Up 71 | 3 4 8 1 11 . 5 7 1 3 5 1 1 2 9 7 3 Fast Attach 177 | 5 2 12 1 6 1 8 17 . 30 9 11 18 1 30 7 19 Attach 58 | . 1 4 1 1 3 5 8 1 4 4 1 2 . 2 6 15 Detach 37 | 1 1 2 1 3 . 1 6 . 3 1 . . . 5 3 10 Swap 57 | . 3 22 . 1 . 2 3 . . 4 5 . . 13 3 1 Drop 136 | 1 4 17 1 9 . 9 12 . 11 4 8 19 3 21 7 10 Fire 491 | 14 67 128 . . . 46 47 . 22 17 26 68 18 27 2 9 Melee 242 | . . . 5 . . . 2 . 36 69 . 2 2 36 44 46 Ram 4 | . . . . . . 1 1 . . . . . 1 . . 1 Kick . | . . . . . . . . . . . . . . . . . Crush . | . . . . . . . . . . . . . . . . . Escape Stasis 59 | . . . . . . 15 14 . . 30 . . . . . . Rewire 1 | . . . . . . 1 . . . . . . . . . . Trap 22 | . . . . . . . . . 1 . . . . 21 . . Miscellaneous 10 | . . 10 . . . . . . . . . . . . . . Route ------- -11/Scrapyard -10/Materials (discovered 5 exits: *Mat x3 / [*Min] / *Sub) -10/Subcaves (discovered 3 exits: *Mat x2 / *Rec) -9/Recycling (discovered 2 exits: [*Fac] / *Scr) -9/Scraptown (discovered 2 exits: *Fac x2) -6/Factory -6/DSF -5/Factory -5/Upper Caves -4/Factory (discovered 9 exits: *Res x4 / *Upp x2 / *Ext x2 / Arm) -4/Extension (discovered 2 exits: *Res / *Cet) -4/Cetus (discovered 2 exits: *Res / [*Arc]) -4/Archives (discovered 3 exits: *Res / *Hub x2) -4/Hub_04(d) (discovered 4 exits: *Res x4) -3/Research (discovered 5 exits: *Res x3 / *Qua x2) -3/Quarantine -2/Research (discovered 4 exits: *Acc x3 / *Tes) History --------- Turn | Location | Event 7 | -11/Scrapyard | Discovered new exit (range 13) 69 | -11/Scrapyard | Entered Materials 112 | -10/Materials | Discovered new exit (range 14) 230 | -10/Materials | Discovered new exit (range 15) 317 | -10/Materials | Build established: Mutant 495 | -10/Materials | Identified exit to Materials 527 | -10/Materials | Learned location of 2 exits from Subcaves 561 | -10/Materials | Learned Storage trap positions 563 | -10/Materials | Learned location of 2 exits from Subcaves 566 | -10/Materials | Learned Storage emergency access door positions 580 | -10/Materials | Identified exit to Subcaves 580 | -10/Materials | Learned location of 2 exits from Materials 643 | -10/Materials | Entered Subcaves 644 | -10/Subcaves | Identified exit to Materials 644 | -10/Subcaves | Identified exit to Recycling 655 | -10/Subcaves | Disturbed a concealed Subdweller 681 | -10/Subcaves | Core integrity fell below 50% 956 | -10/Subcaves | Shifting Twisted Machinery released Sub. Machine Gun 994 | -10/Subcaves | Shifting Twisted Machinery released Scrap Shield 1197 | -10/Subcaves | Build established: Subdweller-Mutant 1240 | -10/Subcaves | Learned location of Zion (-7) 1240 | -10/Subcaves | Met a Zionite searching for "candidates" 2480 | -10/Subcaves | Shifting Twisted Machinery released Sub. Optics 2548 | -10/Subcaves | Learned Materials emergency access door positions 2555 | -10/Subcaves | A swath of the cavern ceiling suddenly collapsed 3179 | -10/Subcaves | Visited Clippyterm 3194 | -10/Subcaves | Learned Factory fabricator intel 3194 | -10/Subcaves | Learned Research security intel 3319 | -10/Subcaves | Ambushed by Subdweller buried in earth 3607 | -10/Subcaves | Build established: Scavenger-Mutant 4388 | -10/Subcaves | Build established: Subdweller-Mutant 4908 | -10/Subcaves | Shifting Twisted Machinery released Mak. Light Armor Plating 4940 | -10/Subcaves | Ambushed by Subdweller buried in earth 4944 | -10/Subcaves | Ambushed by Subdweller buried in earth 4992 | -10/Subcaves | Lost 3 parts (1u2w) 5024 | -10/Subcaves | Shifting Twisted Machinery released Sub. Monowheel 5025 | -10/Subcaves | Shifting Twisted Machinery released Humpback 5205 | -10/Subcaves | A swath of the cavern ceiling suddenly collapsed 5362 | -10/Subcaves | Core integrity fell below 20% 5394 | -10/Subcaves | Lost 3 parts (1p1n1u) 5432 | -10/Subcaves | Entered Recycling 5490 | -9/Recycling | Discovered new exit (range 9) 5639 | -9/Recycling | Learned 8 Materials zone layouts 5643 | -9/Recycling | Scanned before Scraplab entrance 5649 | -9/Recycling | Discovered new exit (range 11) 5650 | -9/Recycling | Entered Scraplab 5658 | -9/Recycling | Build established: Mutant 5673 | -9/Recycling | Learned Materials trap positions 5698 | -9/Recycling | Learned Storage emergency access door positions 5717 | -9/Recycling | Learned location of 1 exit from Recycling 5723 | -9/Recycling | Learned Materials stockpile data 5737 | -9/Recycling | Learned Materials stockpile data 5760 | -9/Recycling | Entered Scraptown 5776 | -9/Scraptown | Visited The Evicted 5790 | -9/Scraptown | Visited Cyclists 5806 | -9/Scraptown | Scanned Subdweller tech in exchange for log data 5807 | -9/Scraptown | Learned Research emergency access door positions 5808 | -9/Scraptown | Learned Research terminal intel 5808 | -9/Scraptown | Learned Research security intel 5809 | -9/Scraptown | Learned 12 Research zone layouts 5824 | -9/Scraptown | Visited Awakened 5839 | -9/Scraptown | Visited Fellowship of the Rings 5856 | -9/Scraptown | Visited UFD Registry 5856 | -9/Scraptown | Registered with UFD as "Nukecycle" 5869 | -9/Scraptown | Visited IN-MT5's Study 5878 | -9/Scraptown | Visited Artisan Demo Area 5896 | -9/Scraptown | Visited Assassins FH 5911 | -9/Scraptown | Entered Cyclist Reading Room 5937 | -9/Scraptown | Discovered new exit (range 11) 5959 | -9/Scraptown | Guru changed UFD alias to "Gravgrid" 6165 | -9/Scraptown | Visited Science Testing Area 6178 | -9/Scraptown | Visited LU-1G1's Boring Crew 6199 | -9/Scraptown | Visited Scrapoid Pod Storage 6208 | -9/Scraptown | Visited Abandonware Association 6214 | -9/Scraptown | Learned abandonware demo "REVENGE.EXE" 6378 | -9/Scraptown | Visited Supply Room 6411 | -9/Scraptown | Visited Research Penetration Think Tank 6441 | -9/Scraptown | Visited Junk Repository 6475 | -9/Scraptown | Visited Scrap Suit Storage 6501 | -9/Scraptown | Found Scrap Suit 6819 | -9/Scraptown | Met Optimus 6819 | -9/Scraptown | Accepted into 0bPrime 6865 | -9/Scraptown | Discovered new exit (range 3) 6867 | -9/Scraptown | Entered Factory 6867 | -6/Factory | Evolved 8 slots: Propulsion x4, Utility x4 6868 | -6/Factory | Loaded intel: 6 fabricator locations 6897 | -6/Factory | Identified exit to DSF 6897 | -6/Factory | Entered DSF 6989 | -6/DSF | Additional patrols routed to DSF 7014 | -6/DSF | Discovered new exit (range 15) 7046 | -6/DSF | Lost 6 parts (1p3u2w) 7061 | -6/DSF | Core integrity fell below 50% 7085 | -6/DSF | Lost 5 parts (3n1u1w) 7244 | -6/DSF | Core integrity fell below 20% 7247 | -6/DSF | Sterilization system engaged 7267 | -6/DSF | Ambient heat levels rising (+10) 7270 | -6/DSF | Lost 3 parts (3u) 7282 | -6/DSF | Ambient heat levels rising (+10) 7286 | -6/DSF | Found Prototype Device 7286 | -6/DSF | Identified Active Sensor Suite 7297 | -6/DSF | Ambient heat levels rising (+10) 7297 | -6/DSF | Identified exit to Factory 7298 | -6/DSF | Entered Factory 7298 | -5/Factory | Evolved 2 slots: Power x1, Propulsion x1 7389 | -5/Factory | Fabricated Xenon Bombardment Thruster (x2) 7904 | -5/Factory | Loaded intel: 8 recycling unit locations 7963 | -5/Factory | Learned location of Protoforge (-2) 8198 | -5/Factory | Search patrols dispatched 8201 | -5/Factory | Discovered new exit (range 15) 8242 | -5/Factory | Core integrity fell below 50% 8272 | -5/Factory | Lost 6 parts (1p2n2u1w) 8276 | -5/Factory | Core integrity fell below 20% 8340 | -5/Factory | Entered Upper Caves 8362 | -5/Upper Caves | Learned 8 Factory zone layouts 8372 | -5/Upper Caves | Learned Factory stockpile data 8430 | -5/Upper Caves | ME-RLN showed up to help 8432 | -5/Upper Caves | ME-RLN revealed a hidden path 8435 | -5/Upper Caves | Entered Factory 8435 | -4/Factory | Evolved 2 slots: Propulsion x1, Utility x1 8436 | -4/Factory | Identified exit to Armory 8436 | -4/Factory | Identified exit to Research 8472 | -4/Factory | Identified exit to Upper Caves 8472 | -4/Factory | Identified exit to Extension 8578 | -4/Factory | Lost 3 parts (2n1u) 8603 | -4/Factory | Found Prototype Hackware 8630 | -4/Factory | Loaded intel: 8 recycling unit locations 8685 | -4/Factory | Search patrols dispatched 8780 | -4/Factory | Learned location of 1 exit from Research 8841 | -4/Factory | Learned Quarantine stockpile data 8935 | -4/Factory | Learned location of 1 exit from Proximity Caves 8944 | -4/Factory | Fabricated Impulse Thruster Array? 9031 | -4/Factory | Identified Exp. System Shield 9047 | -4/Factory | Lost 4 parts (1p2n1u) 9058 | -4/Factory | Learned Research trap positions 9202 | -4/Factory | Scraphulk reinforcements arrived 9251 | -4/Factory | P-70 Sage assimilated allied 04F01-K 9251 | -4/Factory | Spotted 04F01-K 9292 | -4/Factory | Entered Extension 9306 | -4/Extension | Rescued a captive Derelict 9310 | -4/Extension | Lost 13 parts (3p6n1u3w) 9335 | -4/Extension | Core integrity fell below 50% 9420 | -4/Extension | Rescued A7 9441 | -4/Extension | Rescued a captive Derelict 9443 | -4/Extension | Rescued a captive Derelict 9499 | -4/Extension | Rescued a captive Derelict 9499 | -4/Extension | Rescued a captive Derelict 9549 | -4/Extension | Rescued a captive Derelict 9550 | -4/Extension | Rescued a captive Derelict 9566 | -4/Extension | Build established: Hacker-Mutant 9773 | -4/Extension | Spotted B-86 Titan 9806 | -4/Extension | Allies destroyed B-86 Titan 9839 | -4/Extension | Spotted B-86 Titan 9865 | -4/Extension | Allies destroyed B-86 Titan 9917 | -4/Extension | Disrupted transfer network 9930 | -4/Extension | Lost 7 allies 9944 | -4/Extension | Rescued a captive Derelict 9963 | -4/Extension | Repaired VTOL Module+ 10008 | -4/Extension | Rescued a captive Derelict 10008 | -4/Extension | Rescued a captive Derelict 10018 | -4/Extension | Extracted ID and sensor layout for unrecognized location from A7's data core 10064 | -4/Extension | Loaded intel: 1 recycling unit location 10077 | -4/Extension | Lost 5 allies 10078 | -4/Extension | Learned Research garrison access intel 10159 | -4/Extension | Discovered new exit (range 6) 10176 | -4/Extension | Identified exit to Cetus 10197 | -4/Extension | Learned Research trap positions 10241 | -4/Extension | Learned location of 1 exit from Proximity Caves 10277 | -4/Extension | Learned 4 Research zone layouts 10279 | -4/Extension | Entered Cetus 10279 | -4/Cetus | Accompanied by 13 allies 10299 | -4/Cetus | Spotted Cetus Guard 10300 | -4/Cetus | Spotted Cetus Guard 10304 | -4/Cetus | Spotted Cetus Guard 10315 | -4/Cetus | Spotted Cetus Guard 10322 | -4/Cetus | Allies destroyed Cetus Guard 10323 | -4/Cetus | Allies destroyed Cetus Guard 10338 | -4/Cetus | Allies destroyed Cetus Guard 10341 | -4/Cetus | Allies destroyed Cetus Guard 10366 | -4/Cetus | Lost 5 allies 10477 | -4/Cetus | Discovered new exit (range 20) 10500 | -4/Cetus | Spotted Cetus Guard 10500 | -4/Cetus | Spotted Cetus Guard 10504 | -4/Cetus | Spotted Cetus Guard 10505 | -4/Cetus | Spotted Cetus Guard 10514 | -4/Cetus | Allies destroyed Cetus Guard 10514 | -4/Cetus | Allies destroyed Cetus Guard 10521 | -4/Cetus | Allies destroyed Cetus Guard 10527 | -4/Cetus | Destroyed Cetus Guard 10543 | -4/Cetus | Discovered exit to Research (range 20) 10545 | -4/Cetus | Lost 3 allies 10555 | -4/Cetus | Met Revision 17 10667 | -4/Cetus | Entered Archives 10667 | -4/Archives | Accompanied by 5 allies 10714 | -4/Archives | Build established: Scavenger-Mutant 10745 | -4/Archives | Lost 5 allies 10795 | -4/Archives | Discovered new exit (range 16) 10829 | -4/Archives | Discovered new exit (range 16) 10850 | -4/Archives | Discovered exit to Research (range 19) 11174 | -4/Archives | Entered Hub_04(d) 11282 | -4/Hub_04(d) | Discovered exit to Research (range 13) 11304 | -4/Hub_04(d) | Discovered exit to Research (range 3) 11350 | -4/Hub_04(d) | Spotted B-86 Titan 11362 | -4/Hub_04(d) | Discovered exit to Research (range 17) 11407 | -4/Hub_04(d) | Network Hub disabled 11427 | -4/Hub_04(d) | Network Hub disabled 11462 | -4/Hub_04(d) | Core integrity fell below 20% 11466 | -4/Hub_04(d) | Lost 8 parts (1p6n1u) 11479 | -4/Hub_04(d) | Entered Research 11479 | -3/Research | Evolved 2 slots: Utility x2 11480 | -3/Research | Identified exit to Research 11482 | -3/Research | Loaded intel: 83 trap records 11485 | -3/Research | Loaded intel: 23 terminal locations 11486 | -3/Research | Loaded intel: 4 garrison access locations 11675 | -3/Research | Loaded intel: 5 recycling unit locations 11679 | -3/Research | Revision forces began assault on 0b10 11725 | -3/Research | Identified exit to Quarantine 12040 | -3/Research | Fabricated Adv. Quantum Shading Machine? 12091 | -3/Research | Learned location of 1 exit from Research 12179 | -3/Research | Research terminal network offline 12186 | -3/Research | Found Prototype Launcher 12186 | -3/Research | Identified Adv. Micro-nuke Launcher 12240 | -3/Research | Found Prototype Processor 12240 | -3/Research | Identified Exp. Terrain Scan Processor 12247 | -3/Research | Found Exp. Terrain Scan Processor 12263 | -3/Research | Spotted Striker 12279 | -3/Research | Spotted Striker 12292 | -3/Research | Lost 4 allies 12339 | -3/Research | Entered Quarantine 12344 | -3/Quarantine | Build established: Hacker-Ninja 12375 | -3/Quarantine | Found Alien Artifact 12382 | -3/Quarantine | Found Alien Artifact 12394 | -3/Quarantine | Spotted Alpha 7 12423 | -3/Quarantine | Cryocooling Duct disabled 12438 | -3/Quarantine | Ambient heat levels rising (+20) 12438 | -3/Quarantine | Non-combat units ordered to evacuate 12589 | -3/Quarantine | Search patrols dispatched 12639 | -3/Quarantine | Discovered exit to Research (range 12) 12650 | -3/Quarantine | Identified Dimensional Node Initializer 12650 | -3/Quarantine | Identified Transdimensional Reconstructor 12651 | -3/Quarantine | Found Spectral Analyzer 12745 | -3/Quarantine | Found Alien Slashing Weapon 12745 | -3/Quarantine | Identified Sigix Broadsword 12757 | -3/Quarantine | Found Alien Artifact 12790 | -3/Quarantine | Found Alien Artifact 12793 | -3/Quarantine | Identified Subatomic Replicator 12793 | -3/Quarantine | Used Subatomic Replicator to create Alien Artifact 12796 | -3/Quarantine | Learned 4 Research zone layouts 12799 | -3/Quarantine | Found Alien Artifact 12800 | -3/Quarantine | Found Transdimensional Reconstructor 12800 | -3/Quarantine | Warped through subspace 12843 | -3/Quarantine | Learned Section 7 terminal intel 12874 | -3/Quarantine | Identified Hpw. Transdimensional Reconstructor (x2) 12874 | -3/Quarantine | Identified Supercharged TR 12882 | -3/Quarantine | Learned Quarantine stockpile data 12884 | -3/Quarantine | Entered Research 12884 | -2/Research | Evolved 2 slots: Utility x2 12885 | -2/Research | Identified exit to Access 12885 | -2/Research | Identified exit to Testing 12888 | -2/Research | Loaded intel: 65 trap records 12990 | -2/Research | Spotted B-90 Cyclops 13040 | -2/Research | Spotted B-90 Cyclops 13166 | -2/Research | Loaded intel: 5 recycling unit locations 13382 | -2/Research | Core integrity fell below 50% 13389 | -2/Research | System corruption reached 10% 13419 | -2/Research | Lost 15 parts (7n6u2w) 13438 | -2/Research | Warped through subspace 13481 | -2/Research | Warped through subspace 13495 | -2/Research | Core integrity fell below 20% 13543 | -2/Research | Scraphulk reinforcements arrived 13552 | -2/Research | Lost 7 parts (1p2n3u1w) 13587 | -2/Research | Found Prototype Processor 13587 | -2/Research | Identified Exp. Core Analyzer 13613 | -2/Research | Spotted B-90 Cyclops 13674 | -2/Research | Warped through subspace 13675 | -2/Research | Destroyed by C-57 Dissector with Dual-blade Saw Last Messages --------------- 13625_ Dropped Exp. Reaction Control System. 13626_ System corrupted: Matter fused (-8). 13633_ Acquired Ovr. Linear Accelerator. 13641_ System corrupted: Component data lost. 13646_ The unstable cave ceiling collapses. 13652_ K-01 Serf collects debris. 13660_ Slug penetrates Wall. 13661_ Penetrated by Slug. 13661_ Q-thruster destroyed. 13661_ Slug penetrates Wall. 13665_ ALERT: Suspicious intruders detected, dispatching Cutter reinforcements to area. 13671_ Slug penetrates Wall. 13673_ Xenon Bombardment Thruster+ destroyed. 13673_ Knocked back. 13673_ C-57 Dissector knocked back. 13673_ Penetrated by Slug. 13673_ Slug penetrates Wall. 13674_ Adv. Micro-nuke Launcher destroyed. 13674_ Warped through subspace. Map ----- +----------------------------------------------------+ | """ # #######???##???????????????????????####?# | | # ###??#####??#?##????????????????#??#???## | | # #####?#?#??#?#???????????????????#??#?### | | # ##??####?##########????????????????#???## | | # ########### ###??????#????#?##?###?# | | # ### # ##?##?###?#??####????### | | # ### # # ????##?????#??####### | | ###+#### ### ""# #?? ?#?#####?#?##?##??## | | # ""# ### #####?##?##???#?#### | | + S"# ########?###???##?#### | | # """# ## #####??#?###### | | ##+######## """# ## ####?#??#???### | | # ## """# ## ###?####?###?## | | # ## # ## #####?##?###### | | # ## # ## ############### | | # ## # ## # # | | # #######+## ## # + | | # #### ###+##### # # | | #####"####### + ##### # # | | + ## + + # | | ##### ####### ## ##### # # | | ###### ####### =## ##### ############### | | " ####### ## #######+################# | | # ####### # | | """# ####### # | | """# ####### # @c | | """# ####### # c | | # ####### # ########################## | | # ####### # m #####################?###? | | # #########+### *########?##########?##?##? | | # #?##?? ! ###############?####?#??#? | | ###### ^ ################??#?????#? | | ######+###### ^^ #########?########?#?????? | | ##?? ?? ## ^ ##########?####??##??????? | | #??? ? ? ##!! ^ #####?#############???????#? | | #### ?? ##!! ^ ######?#########??#????????? | | ##?#?? ????##!! #######?####?#?????????????? | | #? ? ??# ########?##??????????????? | | ???????????## ###?######?##????????????? | | ? ??#?????? #######??###???????????????? | | ??#???????###+### #?##??#?###????????????????? | | ????????????? ??# #????#?##??????????????????? | | ????????????????# ###??##????????????????????? | | ????????????????# ????#??????????????????????? | | ????????????????# ???????????????????????????? | | ????????????????# ???????????????????????????? | | ????????????????# ???????????????????????????? | | ????????????????# ???????????????????????????? | | ????????????????# ???????????????????????????? | | ????????????????# ???????????????????????????? | +----------------------------------------------------+ Best States ------------- Heat Dissipation 81 Coolant Potential 100 Energy Generation 53 Energy Capacity 600 Matter Stores 300 Matter Capacity 300 Sight Range 24 Robot Scan Range 20 Terrain Scan Range 24 Terrain Scan Density 1010 ECM Strength 1 Cloak Strength 3 Additional Mass Support 25 Corruption Containment 12 Corruption Block 16 Armor Coverage 1350 Resistance: KI 25 Resistance: TH 10 Evasion (%) 65 Recoil Reduction 4 Offensive Hacking 38 Defensive Hacking 26 Authchip Count 3 Item Schematics ----------------- ECM Suite | -10/Materials | Hacked Hcp. Storage Unit | -10/Materials | Hacked Xenon Bombardment Thruster | -9/Recycling | Hacked Imp. System Restoration Module | -5/Factory | Scanalyzed Nuclear Pulse Array | -4/Factory | Hacked Imp. Cloaking Device | -4/Factory | Hacked Exp. Q-thruster | -3/Research | Hacked Adv. Quantum Shading Machine | -3/Research | Hacked Adv. Cloaking Device | -3/Research | Hacked Q-thruster | -3/Research | Hacked Lrn. Phase Cannon | -3/Quarantine | Archive Gravity Neutralizer | -3/Quarantine | Archive Exp. Power Amplifier | -3/Quarantine | Archive Robot Schematics ------------------ A-02 Transporter | -3/Quarantine | Archive Fabricated ------------ Xenon Bombardment Thruster | x2 | -5/Factory | Authchip Impulse Thruster Array | x1 | -4/Factory | Preloaded, Authchip Adv. Quantum Shading Machine | x1 | -3/Research Repaired ---------- VTOL Module | 4% | -4/Extension Studied --------- Xenon Bombardment Thruster | -5/Factory | Hacked Lgt. Nuclear Core | -5/Factory | Hacked Nuclear Pulse Array | -5/Factory | Hacked Hvy. Phase Cannon | -5/Factory | Hacked VTOL Module | -4/Factory | Hacked Impulse Thruster Array | -3/Quarantine | Hacked Impulse Thruster | -3/Quarantine | Hacked Alien Tech Used ----------------- Sigix Broadsword Subatomic Replicator Transdimensional Reconstructor High-powered Transdimensional Reconstructor Supercharged TR Achievements -------------- None Challenges ------------ None Game ------ Seed AblativeEnhancedLaser Manual? 0 Play Time 03:48:41 Cumulative 876.2 hours Start 2026.01.16 @ 15:18:26 End 2026.01.16 @ 19:16:34 Sessions 1 Manual Loads 0 Difficulty Rogue Special Mode None Game No. 342 Rogue 342 Adventurer 0 Explorer 0 Win Type - Total 91 Types 44/6/16/8/7/1/1/3/0/5 Lore% 97 Gallery% 91 Achievement% 86 Wizard Run 0 Options --------- Layout 1 ASCII 0 Keyboard 0 Movement Numpad Keybinds 0 Fullscreen 1 Font 24/Smallcaps Map View 50x35 Zoom Use 0% Tactical HUD 1 Map Filters NONE Filters NONE Steam 1 RUN: dff54399-6f6f-42de-9bbc-8612211f497c